[Event "Romanian Championship 2024"]
[Site "Eforie Nord"]
[Date "2024.02.29"]
[Round "7.18"]
[White "Constantinoiu, Alexandru Ioan"]
[Black "Craciun, Sasha-Matei"]
[Result "1/2-1/2"]
[ECO "C54"]
[WhiteElo "1754"]
[BlackElo "2080"]
[Annotator "NA RC"]
[PlyCount "98"]
[EventDate "2024.02.24"]
[EventType "swiss"]
[EventCountry "ROU"]
[SourceTitle "playchess.com"]
[Source "ChessBase"]
[SourceQuality "1"]
[TimeControl "40/5400+30:900+30"]

1. e4 {[%emt 0:00:04]} e5 {[%emt 0:00:11]} 2. Nf3 {[%emt 0:00:06]} Nc6 {[%emt 0:00:04]} 3. Bc4 {[%emt 0:00:08]} Bc5 {[%emt 0:00:04]} 4. c3 {[%emt 0:00:08]} Nf6 {[%emt 0:00:03]} 5. d4 {[%emt 0:00:10]} exd4 {[%emt 0:00:03]} 6. cxd4 {[%emt 0:00:07]} Bb4+ {[%emt 0:00:03]} 7. Bd2 {[%emt 0:00:10]} Nxe4 {[%emt 0:00:10]} 8. Bxb4 {[%emt 0:00:17]} Nxb4 {[%emt 0:00:14]} 9. Bxf7+ {[%emt 0:00:10]} Kxf7 {[%emt 0:00:03]} 10. Qb3+ {[%emt 0:00:09]} Kf8 {[%emt 0:00:11]} 11. Qxb4+ {[%emt 0:00:10]} Qe7 {[%emt 0:00:02]} 12. Qxe7+ {[%emt 0:00:13]} Kxe7 {[%emt 0:00:04]} 13. O-O {[%emt 0:00:53]} Kd8 {[%emt 0:00:51]} 14. Re1 {[%emt 0:02:23]} Nf6 {[%emt 0:00:21]} 15. Nc3 {[%emt 0:02:27]} h6 {[%emt 0:03:29]} 16. Re3 {[%emt 0:10:30]} d6 {[%emt 0:05:40]} 17. Rae1 {[%emt 0:02:00]} Re8 {[%emt 0:03:22]} 18. h3 {[%emt 0:06:33]} c6 $11 {[%emt 0:13:07]} 19. Ne4 {[%emt 0:15:13]} Nxe4 {[%emt 0:13:09]} 20. Rxe4 {[%emt 0:00:21]} Rxe4 {[%emt 0:01:27]} 21. Rxe4 {[%emt 0:00:07]} a5 {[%emt 0:00:23]} 22. g4 {[%emt 0:08:23]} a4 {[%emt 0:05:55]} 23. Nh4 {[%emt 0:10:50]} Ra5 {[%emt 0:03:44]} 24. f4 {[%emt 0:05:02]} Rb5 {[%emt 0:04:46]} 25. Re2 {[%emt 0:00:30]} Rb4 {[%emt 0:01:41]} 26. Nf3 {[%emt 0:03:06]} b6 {[%emt 0:02:12]} 27. f5 {[%emt 0:05:19]} c5 {[%emt 0:03:06]} 28. Rd2 {[%emt 0:08:09]} Ke7 {[%emt 0:06:05]} 29. Kf2 {[%emt 0:01:54]} Ba6 {[%emt 0:01:28]} 30. Kg3 {[%emt 0:03:16]} Bc4 {[%emt 0:01:15]} 31. a3 {[%emt 0:00:29]} Rb3 {[%emt 0:00:08]} 32. dxc5 {[%emt 0:00:53]} bxc5 {[%emt 0:00:22]} 33. Kf4 {[%emt 0:00:59]} Bb5 {[%emt 0:03:35]} 34. h4 {[%emt 0:09:17]} Bc6 {[%emt 0:00:17]} 35. Ng1 {[%emt 0:00:14]} c4 {[%emt 0:01:38]} 36. Rc2 {[%emt 0:00:35]} Bd5 {[%emt 0:03:44]} 37. g5 {[%emt 0:01:37]} hxg5+ {[%emt 0:00:02]} 38. hxg5 {[%emt 0:00:08]} Rd3 {[%emt 0:00:45]} 39. Ne2 {[%emt 0:02:39]} Kf7 {[%emt 0:02:51]} 40. Nc3 {[%emt 0:00:00]} Bc6 {[%emt 0:00:00]} 41. Re2 {[%emt 0:07:50]} Rd4+ {[%emt 0:01:40]} 42. Ke3 {[%emt 0:06:14]} Rd3+ {[%emt 0:04:25]} 43. Kf4 {[%emt 0:00:10]} Kf8 {[%emt 0:10:35]} 44. g6 {[%emt 0:01:51]} Rd4+ {[%emt 0:03:45]} 45. Ke3 {[%emt 0:00:47]} Rd3+ {[%emt 0:00:21]} 46. Kf4 {[%emt 0:00:16]} Bd7 {[%emt 0:03:05]} 47. Rh2 {[%emt 0:03:09]} Kg8 {[%emt 0:02:12]} 48. Re2 {[%emt 0:01:33]} Kf8 {[%emt 0:01:02]} 49. Rh2 {[%emt 0:00:29]} Kg8 {[%emt 0:00:39]} 1/2-1/2

[Event "Romanian Championship 2024"]
[Site "Eforie Nord"]
[Date "2024.02.29"]
[Round "7.19"]
[White "Gales, Randi-Ioan"]
[Black "Visanescu, Dragos-Nicholas"]
[Result "1/2-1/2"]
[ECO "A14"]
[WhiteElo "2062"]
[BlackElo "1759"]
[Annotator "RC"]
[PlyCount "138"]
[EventDate "2024.02.24"]
[EventType "swiss"]
[EventCountry "ROU"]
[SourceTitle "playchess.com"]
[Source "ChessBase"]
[SourceQuality "1"]
[TimeControl "40/5400+30:900+30"]

1. c4 {[%emt 0:00:03]} e6 {[%emt 0:00:05]} 2. g3 {[%emt 0:00:07]} d5 {[%emt 0:00:12]} 3. Bg2 {[%emt 0:00:07]} Nf6 {[%emt 0:00:06]} 4. Nf3 {[%emt 0:00:05]} Be7 {[%emt 0:00:15]} 5. O-O {[%emt 0:00:07]} O-O {[%emt 0:00:04]} 6. b3 {[%emt 0:00:03]} a5 {[%emt 0:01:55]} 7. Nc3 {[%emt 0:00:15]} c6 {[%emt 0:02:04]} 8. Bb2 {[%emt 0:00:14]} b6 {[%emt 0:01:28]} 9. Qc2 {[%emt 0:00:25]} Ba6 {[%emt 0:01:21]} 10. d3 {[%emt 0:00:24]} Nbd7 {[%emt 0:00:40]} 11. e4 {[%emt 0:00:31]} dxe4 {[%emt 0:01:43]} 12. Nxe4 {[%emt 0:00:14]} Qc7 {[%emt 0:01:06]} 13. d4 Rac8 {[%emt 0:00:30]} 14. Rfe1 Rfd8 {[%emt 0:00:30]} 15. Ne5 Nxe5 {[%emt 0:00:30]} 16. Nxf6+ Bxf6 {[%emt 0:00:30]} 17. dxe5 Be7 {[%emt 0:00:30]} 18. Be4 h6 {[%emt 0:00:30]} 19. Rad1 Bb7 {[%emt 0:00:30]} 20. Rxd8+ Rxd8 {[%emt 0:00:30]} 21. Rd1 c5 {[%emt 0:00:30]} 22. Rxd8+ Bxd8 {[%emt 0:00:30]} 23. Bxb7 Qxb7 {[%emt 0:00:30]} 24. Qd3 Be7 {[%emt 0:00:30]} 25. h4 Qc6 {[%emt 0:00:30]} 26. a4 h5 {[%emt 0:00:30]} 27. Bc1 g6 {[%emt 0:00:30]} 28. Bf4 Kg7 {[%emt 0:00:30]} 29. f3 Qc8 {[%emt 0:00:30]} 30. Kg2 Qd8 {[%emt 0:00:30]} 31. Qxd8 Bxd8 {[%emt 0:00:30]} 32. Kh3 Bc7 {[%emt 0:00:30]} 33. g4 Bd8 {[%emt 0:00:30]} 34. Be3 f5 {[%emt 0:00:30]} 35. exf6+ Bxf6 {[%emt 0:00:30]} 36. Bf4 e5 {[%emt 0:00:30]} 37. Bg3 Kf7 {[%emt 0:00:30]} 38. Kg2 Ke6 {[%emt 0:00:30]} 39. Kf2 Be7 {[%emt 0:00:30]} 40. Ke3 Bd6 {[%emt 0:00:30]} 41. Ke4 Bc7 {[%emt 0:15:30]} 42. Be1 Bd6 {[%emt 0:00:30]} 43. Bc3 Bc7 {[%emt 0:00:30]} 44. Bd2 Bd6 {[%emt 0:00:30]} 45. Bh6 Bb8 {[%emt 0:00:30]} 46. Bg7 Bd6 {[%emt 0:00:30]} 47. Bh6 Bb8 {[%emt 0:00:30]} 48. Bg7 Bd6 {[%emt 0:00:30]} 49. g5 Bb8 {[%emt 0:00:30]} 50. Bf6 Bc7 {[%emt 0:00:30]} 51. Kd3 Kd7 {[%emt 0:00:30]} 52. Ke3 Kd6 {[%emt 0:00:30]} 53. Kd3 Kd7 {[%emt 0:00:30]} 54. Bg7 Bb8 {[%emt 0:00:30]} 55. Ke3 Kd6 {[%emt 0:00:30]} 56. Bh8 Kd7 {[%emt 0:00:30]} 57. Kd3 Kd6 {[%emt 0:00:30]} 58. Bf6 Bc7 {[%emt 0:00:30]} 59. Ke3 Kd7 {[%emt 0:00:30]} 60. Bh8 Bb8 {[%emt 0:00:30]} 61. Bg7 Kd6 {[%emt 0:00:30]} 62. Bh8 Kd7 {[%emt 0:00:30]} 63. Kd3 Kd6 {[%emt 0:00:30]} 64. Ke4 Ke6 {[%emt 0:00:30]} 65. Bf6 Bc7 {[%emt 0:00:30]} 66. Ke3 Kd7 {[%emt 0:00:30]} 67. Bg7 Bb8 {[%emt 0:00:30]} 68. Bh8 Kd6 {[%emt 0:00:30]} 69. Bf6 Bc7 {[%emt 0:00:30]} 1/2-1/2

[Event "Romanian Championship 2024"]
[Site "Eforie Nord"]
[Date "2024.02.29"]
[Round "7.20"]
[White "Sava, Robert-Gabriel"]
[Black "Cruceru-Uceanu, Tudor-Mihai"]
[Result "1-0"]
[ECO "D05"]
[WhiteElo "2053"]
[BlackElo "1894"]
[Annotator "NA RC"]
[PlyCount "91"]
[EventDate "2024.02.24"]
[EventType "swiss"]
[EventCountry "ROU"]
[SourceTitle "playchess.com"]
[Source "ChessBase"]
[SourceQuality "1"]
[TimeControl "40/5400+30:900+30"]

1. d4 {[%emt 0:00:04]} d5 {[%emt 0:00:05]} 2. Nf3 {[%emt 0:00:17]} Nf6 {[%emt 0:00:03]} 3. e3 {[%emt 0:00:07]} e6 {[%emt 0:00:04]} 4. Bd3 {[%emt 0:00:07]} Be7 {[%emt 0:01:09]} 5. Nbd2 {[%emt 0:00:18]} c5 {[%emt 0:00:04]} 6. c3 {[%emt 0:00:23]} Nc6 {[%emt 0:00:20]} 7. O-O {[%emt 0:00:25]} O-O {[%emt 0:00:05]} 8. Qe2 {[%emt 0:01:22]} Re8 {[%emt 0:14:26]} 9. dxc5 {[%emt 0:01:58]} Bxc5 {[%emt 0:00:17]} 10. e4 dxe4 {[%emt 0:04:45]} 11. Nxe4 {[%emt 0:00:27]} Nxe4 {[%emt 0:00:22]} 12. Qxe4 {[%emt 0:03:16]} f5 {[%emt 0:00:05]} 13. Qe2 {[%emt 0:00:24]} h6 {[%emt 0:20:37]} 14. Rd1 {[%emt 0:02:33]} Qf6 $16 {[%emt 0:00:21]} ({Better is} 14... Qe7 $14) 15. Bb5 {[%emt 0:03:10]} Rd8 {[%emt 0:15:14]} 16. Bf4 {[%emt 0:03:12]} Bb6 {[%emt 0:01:07]} 17. Rxd8+ {[%emt 0:02:51]} Bxd8 {[%emt 0:02:42]} 18. Rd1 {[%emt 0:01:09]} g5 {[%emt 0:05:24]} 19. Bxc6 {[%emt 0:01:06]} gxf4 {[%emt 0:03:00]} 20. Bd7 {[%emt 0:00:58]} Bb6 {[%emt 0:04:18]} 21. Ne5 {[%emt 0:07:04]} Bc7 {[%emt 0:01:55]} 22. Bxc8 {[%emt 0:02:12]} Rxc8 {[%emt 0:01:57]} 23. Nd7 {[%emt 0:00:35]} Qf7 {[%emt 0:03:27]} 24. Nc5 {[%emt 0:00:24]} f3 {[%emt 0:02:06]} 25. Qxe6 {[%emt 0:02:29]} Qxe6 {[%emt 0:03:33]} 26. Nxe6 {[%emt 0:00:05]} Kf7 {[%emt 0:00:19]} 27. Nxc7 {[%emt 0:00:11]} Rxc7 {[%emt 0:00:05]} 28. gxf3 {[%emt 0:00:08]} Ke6 {[%emt 0:00:18]} 29. Rd4 {[%emt 0:00:19]} Rg7+ {[%emt 0:00:30]} 30. Kf1 {[%emt 0:00:05]} b6 {[%emt 0:00:26]} 31. a4 {[%emt 0:00:23]} Ke5 {[%emt 0:01:00]} 32. f4+ {[%emt 0:01:52]} Ke6 {[%emt 0:00:05]} 33. f3 {[%emt 0:00:10]} Rg8 {[%emt 0:02:17]} 34. Kf2 {[%emt 0:02:14]} Rc8 {[%emt 0:01:03]} 35. c4 {[%emt 0:00:14]} a5 {[%emt 0:00:49]} 36. b3 {[%emt 0:00:05]} Rg8 {[%emt 0:02:05]} 37. Rd5 {[%emt 0:00:05]} Rc8 {[%emt 0:00:50]} 38. Rb5 {[%emt 0:01:19]} Rc6 {[%emt 0:00:43]} 39. Re5+ {[%emt 0:00:13]} Kf6 {[%emt 0:00:07]} 40. Ke3 {[%emt 0:00:00]} Re6 {[%emt 0:00:00]} 41. Rxe6+ {[%emt 0:03:23]} Kxe6 {[%emt 0:01:31]} 42. Kd4 {[%emt 0:00:05]} Kd6 {[%emt 0:00:04]} 43. Kc3 {[%emt 0:00:05]} Kc5 {[%emt 0:00:07]} 44. b4+ {[%emt 0:00:04]} axb4+ {[%emt 0:00:29]} 45. Kb3 {[%emt 0:00:05]} h5 {[%emt 0:00:06]} 46. h4 {[%emt 0:00:04]} 1-0

[Event "Romanian Championship 2024"]
[Site "Eforie Nord"]
[Date "2024.02.29"]
[Round "7.21"]
[White "Armenciu, Bogdan-Ovidiu"]
[Black "Negrean, Andrei"]
[Result "1/2-1/2"]
[ECO "B48"]
[WhiteElo "1936"]
[BlackElo "1990"]
[Annotator "RC"]
[PlyCount "124"]
[EventDate "2024.02.24"]
[EventType "swiss"]
[EventCountry "ROU"]
[SourceTitle "playchess.com"]
[Source "ChessBase"]
[SourceQuality "1"]
[TimeControl "40/5400+30:900+30"]

1. e4 {[%emt 0:00:05]} c5 {[%emt 0:00:07]} 2. Nf3 {[%emt 0:00:05]} Nc6 {[%emt 0:00:07]} 3. d4 {[%emt 0:00:05]} cxd4 {[%emt 0:00:08]} 4. Nxd4 {[%emt 0:00:03]} Qc7 {[%emt 0:00:14]} 5. Nc3 {[%emt 0:00:09]} e6 {[%emt 0:00:12]} 6. Be3 {[%emt 0:00:38]} a6 {[%emt 0:00:27]} 7. a3 {[%emt 0:00:44]} b5 {[%emt 0:03:30]} 8. Nxc6 {[%emt 0:00:57]} Qxc6 {[%emt 0:02:57]} 9. h4 {[%emt 0:01:04]} Bb7 {[%emt 0:05:46]} 10. h5 {[%emt 0:02:39]} h6 {[%emt 0:06:10]} 11. Qd4 {[%emt 0:01:08]} Nf6 {[%emt 0:06:44]} 12. e5 {[%emt 0:13:22]} Nd5 {[%emt 0:04:09]} 13. Nxd5 {[%emt 0:01:06]} Qxd5 {[%emt 0:00:14]} 14. Qxd5 {[%emt 0:00:34]} Bxd5 {[%emt 0:00:08]} 15. a4 {[%emt 0:00:17]} b4 {[%emt 0:04:10]} 16. Rh4 {[%emt 0:01:41]} a5 {[%emt 0:10:20]} 17. Rg4 {[%emt 0:01:33]} Rc8 {[%emt 0:11:34]} 18. Bd3 {[%emt 0:02:40]} Bc5 {[%emt 0:07:06]} 19. Rxg7 {[%emt 0:17:37]} Bxe3 {[%emt 0:02:06]} 20. fxe3 {[%emt 0:00:23]} Rc5 {[%emt 0:08:24]} 21. Kd2 {[%emt 0:17:50]} Kf8 {[%emt 0:02:18]} 22. Rg4 {[%emt 0:08:00]} Rg8 {[%emt 0:02:26]} 23. Rxg8+ {[%emt 0:02:31]} Kxg8 {[%emt 0:00:03]} 24. Rf1 {[%emt 0:17:58]} Bc6 {[%emt 0:01:40]} 25. b3 {[%emt 0:02:07]} Rxe5 {[%emt 0:00:11]} 26. g4 {[%emt 0:00:17]} Rg5 {[%emt 0:09:14]} 27. Rf4 {[%emt 0:00:31]} Kg7 {[%emt 0:00:54]} 28. c3 {[%emt 0:01:39]} e5 {[%emt 0:06:32]} 29. Rf5 {[%emt 0:00:18]} Rxg4 {[%emt 0:00:31]} 30. Rxe5 {[%emt 0:00:16]} Rg2+ {[%emt 0:00:35]} 31. Kc1 {[%emt 0:00:26]} bxc3 {[%emt 0:01:27]} 32. Rxa5 {[%emt 0:00:10]} Rd2 {[%emt 0:02:28]} 33. Bf5 {[%emt 0:02:33]} Re2 {[%emt 0:02:01]} 34. b4 {[%emt 0:02:44]} Rxe3 {[%emt 0:00:08]} 35. Kc2 {[%emt 0:00:06]} d5 {[%emt 0:01:39]} 36. b5 {[%emt 0:00:27]} Be8 {[%emt 0:00:12]} 37. Ra8 {[%emt 0:01:48]} d4 {[%emt 0:00:27]} 38. Bd3 {[%emt 0:01:48]} Bd7 {[%emt 0:00:10]} 39. Rd8 {[%emt 0:00:10]} Re7 {[%emt 0:01:37]} 40. Rxd7 {[%emt 0:00:00]} Rxd7 {[%emt 0:00:00]} 41. b6 {[%emt 0:01:19]} Rb7 {[%emt 0:10:04]} 42. a5 {[%emt 0:00:05]} f5 {[%emt 0:03:36]} 43. Bb5 {[%emt 0:07:12]} Kf6 {[%emt 0:01:19]} 44. a6 {[%emt 0:04:23]} Rxb6 {[%emt 0:00:07]} 45. a7 {[%emt 0:00:01]} Rxb5 {[%emt 0:00:05]} 46. a8=Q {[%emt 0:00:05]} Rb2+ {[%emt 0:01:45]} 47. Kc1 {[%emt 0:00:20]} Ke5 {[%emt 0:00:44]} 48. Qh8+ {[%emt 0:01:54]} Ke4 {[%emt 0:00:07]} 49. Qxh6 {[%emt 0:00:12]} Rh2 {[%emt 0:01:52]} 50. Qe6+ {[%emt 0:00:22]} Kd3 {[%emt 0:00:05]} 51. Qxf5+ {[%emt 0:00:06]} Kc4 {[%emt 0:00:12]} 52. Qf1+ {[%emt 0:01:46]} Kc5 {[%emt 0:01:08]} 53. h6 {[%emt 0:00:25]} Rxh6 {[%emt 0:00:50]} 54. Qf8+ {[%emt 0:00:53]} Rd6 {[%emt 0:00:01]} 55. Kc2 {[%emt 0:02:45]} d3+ {[%emt 0:01:01]} 56. Kxc3 {[%emt 0:00:05]} d2 {[%emt 0:00:02]} 57. Qc8+ {[%emt 0:00:42]} Kb6 {[%emt 0:00:30]} 58. Qb8+ {[%emt 0:00:58]} Kc6 {[%emt 0:00:14]} 59. Qe8+ {[%emt 0:01:29]} Kc7 {[%emt 0:01:28]} 60. Qf7+ {[%emt 0:00:44]} Rd7 {[%emt 0:00:36]} 61. Qc4+ {[%emt 0:01:00]} Kd8 {[%emt 0:00:18]} 62. Qg8+ {[%emt 0:00:05]} Kc7 {[%emt 0:01:20]} 1/2-1/2

[Event "Romanian Championship 2024"]
[Site "Eforie Nord"]
[Date "2024.02.29"]
[Round "7.22"]
[White "Lucaci, Alin-Marian"]
[Black "Pisu, Robert-Daniel"]
[Result "1-0"]
[ECO "A85"]
[WhiteElo "1749"]
[BlackElo "2154"]
[Annotator "RC"]
[PlyCount "51"]
[EventDate "2024.02.24"]
[EventType "swiss"]
[EventCountry "ROU"]
[SourceTitle "playchess.com"]
[Source "ChessBase"]
[SourceQuality "1"]
[TimeControl "40/5400+30:900+30"]

1. d4 {[%emt 0:00:03]} d5 {[%emt 0:00:06]} 2. c4 {[%emt 0:00:03]} e6 {[%emt 0:00:04]} 3. Nc3 {[%emt 0:00:03]} c6 {[%emt 0:00:22]} 4. e3 {[%emt 0:18:44]} Bd6 {[%emt 0:02:08]} 5. Nf3 {[%emt 0:01:06]} f5 {[%emt 0:00:52]} 6. Bd3 {[%emt 0:05:02]} Nf6 {[%emt 0:00:43]} 7. Qc2 {[%emt 0:01:51]} Ne4 {[%emt 0:00:59]} 8. O-O {[%emt 0:18:37]} Nd7 {[%emt 0:04:36]} 9. b3 {[%emt 0:03:32]} O-O {[%emt 0:02:02]} 10. Bb2 {[%emt 0:01:48]} Rf6 {[%emt 0:07:16]} 11. Ne2 {[%emt 0:16:31]} Rh6 {[%emt 0:06:23]} 12. Ne5 {[%emt 0:02:24]} Qh4 {[%emt 0:18:51]} 13. h3 {[%emt 0:00:07]} g5 {[%emt 0:03:09]} 14. Bxe4 {[%emt 0:10:10]} dxe4 {[%emt 0:49:59]} 15. Qc1 {[%emt 0:13:00]} g4 {[%emt 0:00:00]} 16. Nf4 {[%emt 0:00:19]} gxh3 {[%emt 0:00:00]} 17. Nxh3 {[%emt 0:00:07]} Qf6 {[%emt 0:00:00]} 18. Qc3 {[%emt 0:01:34]} Qg7 {[%emt 0:00:00]} 19. Kh1 {[%emt 0:00:07]} Nf6 {[%emt 0:00:00]} 20. Rad1 {[%emt 0:00:47]} Bd7 {[%emt 0:00:00]} 21. d5 {[%emt 0:05:05]} exd5 {[%emt 0:00:00]} 22. cxd5 {[%emt 0:00:00]} cxd5 {[%emt 0:00:00]} 23. Nxd7 {[%emt 0:00:00]} Qxd7 {[%emt 0:00:00]} 24. Rxd5 {[%emt 0:00:00]} Qe6 {[%emt 0:00:16]} 25. Rfd1 {[%emt 0:00:01]} Nxd5 {[%emt 0:01:03]} 26. Qg7# 1-0

[Event "Romanian Championship 2024"]
[Site "Eforie Nord"]
[Date "2024.02.29"]
[Round "7.23"]
[White "Coicev, Matei-Andrei"]
[Black "Vedmediuc, Artiom"]
[Result "1-0"]
[ECO "B13"]
[WhiteElo "2122"]
[BlackElo "2034"]
[Annotator "RC"]
[PlyCount "113"]
[EventDate "2024.02.24"]
[EventType "swiss"]
[EventCountry "ROU"]
[SourceTitle "playchess.com"]
[Source "ChessBase"]
[SourceQuality "1"]
[TimeControl "40/5400+30:900+30"]

1. e4 {[%emt 0:00:05]} c6 {[%emt 0:00:05]} 2. Nf3 {[%emt 0:04:17]} d5 {[%emt 0:00:03]} 3. Nc3 {[%emt 0:01:25]} Bg4 {[%emt 0:00:05]} 4. h3 {[%emt 0:00:41]} Bxf3 {[%emt 0:00:04]} 5. Qxf3 {[%emt 0:00:06]} e6 {[%emt 0:00:09]} 6. exd5 {[%emt 0:01:33]} cxd5 {[%emt 0:00:15]} 7. d4 {[%emt 0:01:58]} Nc6 {[%emt 0:03:51]} 8. Bb5 {[%emt 0:03:26]} Rc8 {[%emt 0:00:11]} 9. O-O {[%emt 0:01:47]} Nf6 {[%emt 0:01:09]} 10. Ne2 {[%emt 0:06:00]} Bd6 {[%emt 0:02:42]} 11. c3 {[%emt 0:01:29]} O-O {[%emt 0:00:10]} 12. Bg5 {[%emt 0:01:42]} Be7 {[%emt 0:00:45]} 13. Bd3 {[%emt 0:01:25]} a6 {[%emt 0:14:29]} 14. Ng3 {[%emt 0:06:16]} Re8 {[%emt 0:11:11]} 15. Rfe1 {[%emt 0:09:20]} Na5 {[%emt 0:07:25]} 16. Qe2 {[%emt 0:04:02]} Nc4 {[%emt 0:04:48]} 17. f4 {[%emt 0:06:03]} Nd7 {[%emt 0:12:34]} 18. Bxe7 {[%emt 0:02:38]} Qxe7 {[%emt 0:00:08]} 19. Bxc4 {[%emt 0:04:38]} Rxc4 {[%emt 0:04:07]} 20. Nf5 {[%emt 0:03:23]} Qf8 {[%emt 0:00:11]} 21. Ne3 {[%emt 0:00:38]} Rcc8 {[%emt 0:00:06]} 22. f5 {[%emt 0:01:18]} Nf6 {[%emt 0:00:21]} 23. Qf3 {[%emt 0:03:38]} Rcd8 {[%emt 0:05:19]} 24. fxe6 {[%emt 0:03:36]} Rxe6 {[%emt 0:00:19]} 25. Nf5 {[%emt 0:01:46]} Ne4 {[%emt 0:02:21]} 26. Ng3 {[%emt 0:04:41]} Qe7 {[%emt 0:01:44]} 27. Nxe4 {[%emt 0:01:11]} dxe4 {[%emt 0:00:03]} 28. Qe3 {[%emt 0:00:27]} f5 {[%emt 0:01:37]} 29. Rad1 {[%emt 0:03:38]} Qc7 {[%emt 0:01:14]} 30. Rf1 {[%emt 0:04:32]} g6 {[%emt 0:00:51]} 31. Kh1 {[%emt 0:04:55]} b5 {[%emt 0:06:43]} 32. Rf2 {[%emt 0:00:58]} Re7 {[%emt 0:03:52]} 33. Rdf1 {[%emt 0:01:10]} Rf8 {[%emt 0:01:59]} 34. g4 {[%emt 0:02:42]} Ref7 {[%emt 0:00:43]} 35. gxf5 {[%emt 0:00:46]} gxf5 {[%emt 0:00:04]} 36. Rg1+ {[%emt 0:01:29]} Kh8 {[%emt 0:01:26]} 37. Rfg2 {[%emt 0:02:16]} Rf6 {[%emt 0:05:44]} 38. d5 {[%emt 0:01:05]} Qe5 {[%emt 0:02:14]} 39. Qa7 {[%emt 0:00:24]} Rh6 {[%emt 0:00:52]} 40. Rg3 {[%emt 0:00:00]} f4 {[%emt 0:00:00]} 41. Rf1 {[%emt 0:05:41]} f3 {[%emt 0:05:00]} 42. Qg1 {[%emt 0:06:03]} Qxd5 {[%emt 0:00:52]} 43. Qe3 {[%emt 0:01:08]} Rhf6 {[%emt 0:06:06]} 44. Rg4 {[%emt 0:02:54]} Qh5 {[%emt 0:04:15]} 45. Kh2 {[%emt 0:00:44]} Qe5+ {[%emt 0:00:03]} 46. Kh1 {[%emt 0:00:26]} Rf4 {[%emt 0:00:47]} 47. Rxf4 {[%emt 0:00:59]} Rxf4 {[%emt 0:00:27]} 48. Rd1 {[%emt 0:00:57]} Rf8 {[%emt 0:01:16]} 49. Rf1 {[%emt 0:00:57]} Rd8 {[%emt 0:02:27]} 50. Rg1 {[%emt 0:01:57]} Qh5 {[%emt 0:03:23]} 51. Kh2 {[%emt 0:00:47]} Qe5+ {[%emt 0:00:08]} 52. Kh1 {[%emt 0:00:10]} Qe6 {[%emt 0:00:47]} 53. Kh2 {[%emt 0:00:45]} h6 {[%emt 0:02:11]} 54. Rg3 {[%emt 0:02:36]} Rd3 {[%emt 0:01:09]} 55. Qa7 {[%emt 0:00:45]} Rd2+ {[%emt 0:01:02]} 56. Kh1 {[%emt 0:00:05]} Qd7 {[%emt 0:00:57]} 57. Qb8+ {[%emt 0:00:14]} 1-0